fUSD/lending_fUSD_20250717
["ID","MTS","AMOUNT","RATE_DAILY","PERIOD"]
[372901544,1752796252903,-460.0,0.00021917,2]
[372901545,1752796252912,-460.0,0.00021917,2]
[372901546,1752796252922,-460.0,0.00021917,2]
[372901547,1752796252932,-1095.14,0.00021917,2]
[372901548,1752796252943,-460.0,0.00021917,2]
[372901549,1752796252955,-460.0,0.00021917,2]
[372901550,1752796252967,-460.0,0.00021917,2]
[372901551,1752796252976,-614.54,0.00021917,2]
[372901552,1752796252986,-2543.94,0.00021917,2]
[372901553,1752796252997,-460.0,0.00021917,2]
[372901554,1752796253008,-460.0,0.00021917,2]
[372901555,1752796253019,-460.0,0.00021917,2]
[372901556,1752796253030,-500.0,0.00021917,2]
[372901557,1752796253040,-500.0,0.00021917,2]
[372901558,1752796253053,-500.0,0.00021917,2]
[372901559,1752796253064,-500.0,0.00021917,2]
[372901560,1752796253075,-460.0,0.00021917,2]
[372901561,1752796253084,-460.0,0.00021917,2]
[372901562,1752796253093,-460.0,0.00021917,2]
[372901563,1752796253103,-502.89,0.00021917,2]
[372901564,1752796253112,-5420.52,0.00021917,2]
[372901565,1752796253124,-460.0,0.00021917,2]
[372901566,1752796253134,-584.42,0.00021917,2]
[372901567,1752796253144,-460.0,0.00021917,2]
[372901568,1752796253153,-460.0,0.00021917,2]
[372901569,1752796253163,-460.0,0.00021917,2]
[372901570,1752796253172,-3692.18,0.00021917,2]
[372901571,1752796253181,-883.68,0.00021917,2]
[372901572,1752796253190,-903.38,0.00021917,2]
[372901573,1752796253200,-1028.8,0.00021917,2]
[372901574,1752796253209,-460.0,0.00021917,2]
[372901575,1752796253219,-460.0,0.00021917,2]
[372901576,1752796253228,-186.13476272,0.00021917,2]
[372901577,1752796253238,-2876.99,0.00021917,2]
[372901578,1752796253247,-460.0,0.00021917,2]
[372901579,1752796253260,-460.0,0.00021917,2]
[372901580,1752796253270,-460.0,0.00021917,2]
[372901581,1752796253279,-831.49,0.00021917,2]
[372901582,1752796253289,-1268.77,0.00021917,2]
[372901583,1752796253298,-460.0,0.00021917,2]
[372901584,1752796253307,-460.0,0.00021917,2]
[372901585,1752796253317,-460.0,0.00021917,2]
[372901586,1752796253327,-460.0,0.00021917,2]
[372901587,1752796253336,-460.0,0.00021917,2]
[372901588,1752796253346,-460.0,0.00021917,2]
[372901589,1752796253355,-520.47,0.00021917,2]
[372901590,1752796253364,-460.0,0.00021917,2]
[372901591,1752796253373,-460.0,0.00021917,2]
[372901592,1752796253383,-460.0,0.00021917,2]
[372901593,1752796253393,-1000.0,0.00021917,2]
[372901594,1752796253402,-1446.35,0.00021917,2]
[372901595,1752796253412,-604.10793027,0.00021917,2]
[372901596,1752796253421,-460.0,0.00021917,2]
[372901597,1752796253431,-460.0,0.00021917,2]
[372901598,1752796253441,-515.1,0.00021917,2]
[372901599,1752796253450,-460.0,0.00021917,2]
[372901600,1752796253459,-460.0,0.00021917,2]
[372901601,1752796253469,-460.0,0.00021917,2]
[372901602,1752796253479,-460.0,0.00021917,2]
[372901603,1752796253489,-859.25,0.00021917,2]
[372901604,1752796253499,-460.0,0.00021917,2]
[372901605,1752796253509,-460.0,0.00021917,2]
[372901606,1752796253518,-460.0,0.00021917,2]
[372901607,1752796253530,-460.0,0.00021917,2]
[372901608,1752796253540,-805.48,0.00021917,2]
[372901609,1752796253549,-460.0,0.00021917,2]
[372901610,1752796253559,-460.0,0.00021917,2]
[372901611,1752796253571,-460.0,0.00021917,2]
[372901612,1752796253581,-460.0,0.00021917,2]
[372901613,1752796253590,-460.0,0.00021917,2]
[372901614,1752796253599,-798.74,0.00021917,2]
[372901615,1752796253608,-495.04168538,0.00021917,2]
[372901616,1752796253617,-740.52,0.00021917,2]
[372901617,1752796253627,-460.0,0.00021917,2]
[372901618,1752796253636,-460.0,0.00021917,2]
[372901619,1752796253646,-460.0,0.00021917,2]
[372901620,1752796253655,-3869.29,0.00021917,2]
[372901621,1752796253664,-460.0,0.00021917,2]
[372901622,1752796253673,-1335.97,0.00021917,2]
[372901623,1752796253682,-2034.86,0.00021917,2]
[372901624,1752796253693,-460.0,0.00021917,2]
[372901625,1752796253702,-670.5,0.00021917,2]
[372901626,1752796253711,-460.0,0.00021917,2]
[372901627,1752796253720,-2103.45,0.00021917,2]
[372901628,1752796253729,-460.0,0.00021917,2]
[372901629,1752796253739,-460.0,0.00021917,2]
[372901630,1752796253748,-460.0,0.00021917,2]
[372901631,1752796253757,-555.12,0.00021917,2]
[372901632,1752796253767,-749.22,0.00021917,2]
[372901633,1752796253776,-460.0,0.00021917,2]
[372901634,1752796253786,-744.99,0.00021917,2]
[372901635,1752796253796,-460.0,0.00021917,2]
[372901636,1752796253806,-1938.31,0.00021917,2]
[372901637,1752796253817,-460.0,0.00021917,2]
[372901638,1752796253826,-1514.84,0.00021917,2]
[372901639,1752796253835,-1833.71,0.00021917,2]
[372901640,1752796253845,-770.11,0.00021917,2]
[372901641,1752796253854,-460.0,0.00021917,2]
[372901642,1752796253863,-460.0,0.00021917,2]
[372901643,1752796253873,-460.0,0.00021917,2]
[372901644,1752796253883,-777.85,0.00021917,2]
[372901645,1752796253892,-460.0,0.00021917,2]
[372901646,1752796253901,-1025.08,0.00021917,2]
[372901647,1752796253910,-460.0,0.00021917,2]
[372901648,1752796253920,-626.28,0.00021917,2]
[372901649,1752796253929,-847.72,0.00021917,2]
[372901650,1752796253939,-712.38,0.00021917,2]
[372901651,1752796253948,-460.0,0.00021917,2]
[372901652,1752796253958,-460.0,0.00021917,2]
[372901653,1752796253967,-460.0,0.00021917,2]
[372901654,1752796253976,-460.0,0.00021917,2]
[372901655,1752796253987,-460.0,0.00021917,2]
[372901656,1752796253997,-500.0,0.00021917,2]
[372901657,1752796254006,-1105.87,0.00021917,2]
[372901658,1752796254016,-1359.96,0.00021917,2]
[372901659,1752796254026,-460.0,0.00021917,2]
[372901660,1752796254035,-460.0,0.00021917,2]
[372901661,1752796254044,-460.0,0.00021917,2]
[372901662,1752796254053,-460.0,0.00021917,2]
[372901663,1752796254063,-460.0,0.00021917,2]
[372901664,1752796254075,-4607.18,0.00021917,2]
[372901665,1752796254085,-460.0,0.00021917,2]
[372901666,1752796254094,-460.0,0.00021917,2]
[372901667,1752796254104,-460.0,0.00021917,2]
[372901668,1752796254113,-460.0,0.00021917,2]
[372901669,1752796254123,-2420.7,0.00021917,2]
[372901670,1752796254132,-460.0,0.00021917,2]
[372901671,1752796254141,-354.74199613,0.00021917,2]
[372901672,1752796254151,-420.62670382,0.00021917,2]
[372901673,1752796254161,-5808.52,0.00021917,2]
[372901674,1752796254172,-460.0,0.00021917,2]
[372901675,1752796254183,-460.0,0.00021917,2]
[372901676,1752796254193,-460.0,0.00021917,2]
[372901677,1752796254203,-460.0,0.00021917,2]
[372901678,1752796254212,-460.0,0.00021917,2]
[372901679,1752796254222,-652.61,0.00021917,2]
[372901680,1752796254232,-460.0,0.00021917,2]
[372901681,1752796254241,-460.0,0.00021917,2]
[372901682,1752796254251,-1041.73,0.00021917,2]
[372901683,1752796254261,-1705.94,0.00021917,2]
[372901684,1752796254364,-460.0,0.00021917,2]
[372901685,1752796254411,-460.0,0.00021917,2]
[372901686,1752796254422,-2592.16,0.00021917,2]
[372901687,1752796254431,-497.96,0.00021917,2]
[372901688,1752796254441,-458.59552996,0.00021917,2]
[372901689,1752796254451,-460.0,0.00021917,2]
[372901690,1752796254462,-739.41,0.00021917,2]
[372901691,1752796254472,-460.0,0.00021917,2]
[372901692,1752796254486,-460.0,0.00021917,2]
[372901693,1752796254503,-460.0,0.00021917,2]
[372901694,1752796254513,-707.37,0.00021917,2]
[372901695,1752796254523,-460.0,0.00021917,2]
[372901696,1752796254534,-460.0,0.00021917,2]
[372901697,1752796254544,-1718.36,0.00021917,2]
[372901698,1752796254554,-460.0,0.00021917,2]
[372901699,1752796254563,-460.0,0.00021917,2]
[372901700,1752796254575,-1731.53,0.00021917,2]
[372901701,1752796254585,-460.0,0.00021917,2]
[372901702,1752796254595,-460.0,0.00021917,2]
[372901703,1752796254604,-526.05,0.00021917,2]
[372901704,1752796254614,-1184.13,0.00021917,2]
[372901705,1752796254623,-460.0,0.00021917,2]
[372901706,1752796254633,-460.0,0.00021917,2]
[372901707,1752796254643,-1708.9,0.00021917,2]
[372901708,1752796254652,-365.14463864,0.00021917,2]
[372901709,1752796254662,-460.0,0.00021917,2]
[372901710,1752796254672,-462.6819671,0.00021917,2]
[372901711,1752796254682,-460.0,0.00021917,2]
[372901712,1752796254691,-730.98,0.00021917,2]
[372901713,1752796254701,-460.0,0.00021917,2]
[372901714,1752796254711,-592.32,0.00021917,2]
[372901715,1752796254721,-460.0,0.00021917,2]
[372901716,1752796254731,-460.0,0.00021917,2]
[372901717,1752796254742,-1628.18,0.00021917,2]
[372901718,1752796254751,-717.12,0.00021917,2]
[372901719,1752796254761,-772.01,0.00021917,2]
[372901720,1752796254770,-1417.61,0.00021917,2]
[372901721,1752796254780,-460.0,0.00021917,2]
[372901722,1752796254790,-460.0,0.00021917,2]
[372901723,1752796254799,-651.17,0.00021917,2]
[372901724,1752796254809,-460.0,0.00021917,2]
[372901725,1752796254819,-3318.49,0.00021917,2]
[372901726,1752796254828,-460.0,0.00021917,2]
[372901727,1752796254838,-460.0,0.00021917,2]
[372901728,1752796254847,-460.0,0.00021917,2]
[372901729,1752796254857,-460.0,0.00021917,2]
[372901730,1752796254866,-460.0,0.00021917,2]
[372901731,1752796254877,-460.0,0.00021917,2]
[372901732,1752796254888,-460.0,0.00021917,2]
[372901733,1752796254899,-460.0,0.00021917,2]
[372901734,1752796254909,-460.0,0.00021917,2]
[372901735,1752796254918,-2661.16,0.00021917,2]
[372901736,1752796254928,-1249.99,0.00021917,2]
[372901737,1752796254938,-460.0,0.00021917,2]
[372901738,1752796254949,-460.0,0.00021917,2]
[372901739,1752796254959,-460.0,0.00021917,2]
[372901740,1752796254969,-460.0,0.00021917,2]
[372901741,1752796254979,-584.95879387,0.00021917,2]
[372901742,1752796254991,-1672.98,0.00021917,2]
[372901743,1752796255001,-598.59,0.00021917,2]
[372901744,1752796255010,-460.0,0.00021917,2]
[372901745,1752796255019,-460.0,0.00021917,2]
[372901746,1752796255029,-1264.96,0.00021917,2]
[372901747,1752796255038,-1572.83,0.00021917,2]
[372901748,1752796255048,-1749.45,0.00021917,2]
[372901749,1752796255059,-2162.73,0.00021917,2]
[372901750,1752796255071,-460.0,0.00021917,2]
[372901751,1752796255081,-460.0,0.00021917,2]
[372901752,1752796255090,-460.0,0.00021917,2]
[372901753,1752796255099,-1776.04,0.00021917,2]
[372901754,1752796255109,-460.0,0.00021917,2]
[372901755,1752796255118,-2201.36,0.00021917,2]
[372901756,1752796255128,-460.0,0.00021917,2]
[372901757,1752796255137,-1032.3,0.00021917,2]
[372901758,1752796255147,-854.27,0.00021917,2]
[372901759,1752796255157,-535.85,0.00021917,2]
[372901760,1752796255166,-460.0,0.00021917,2]
[372901761,1752796255175,-543.21,0.00021917,2]
[372901762,1752796255185,-885.01,0.00021917,2]
[372901763,1752796255199,-460.0,0.00021917,2]
[372901764,1752796255209,-460.0,0.00021917,2]
[372901765,1752796255219,-460.0,0.00021917,2]
[372901766,1752796255229,-460.0,0.00021917,2]
[372901767,1752796255239,-612.12,0.00021917,2]
[372901768,1752796255249,-460.0,0.00021917,2]
[372901769,1752796255259,-460.0,0.00021917,2]
[372901770,1752796255269,-201.41287473,0.00021917,2]
[372901771,1752796255280,-1063.37,0.00021917,2]
[372901772,1752796255290,-1456.05,0.00021917,2]
[372901773,1752796255300,-1476.38,0.00021917,2]
[372901774,1752796255310,-1512.78,0.00021917,2]
[372901775,1752796255320,-3060.31,0.00021917,2]
[372901776,1752796255330,-460.0,0.00021917,2]
[372901777,1752796255340,-460.0,0.00021917,2]
[372901778,1752796255350,-1488.46,0.00021917,2]
[372901779,1752796255360,-460.0,0.00021917,2]
[372901780,1752796255370,-460.0,0.00021917,2]
[372901781,1752796255380,-460.0,0.00021917,2]
[372901782,1752796255390,-460.0,0.00021917,2]
[372901783,1752796255400,-6688.85,0.00021917,2]
[372901784,1752796255410,-10986.43,0.00021917,2]
[372901785,1752796255420,-460.0,0.00021917,2]
[372901786,1752796255430,-460.0,0.00021917,2]
[372901787,1752796255440,-531.77772643,0.00021917,2]
[372901788,1752796255450,-460.0,0.00021917,2]
[372901789,1752796255461,-3555.93,0.00021917,2]
[372901790,1752796255470,-460.0,0.00021917,2]
[372901791,1752796255484,-460.0,0.00021917,2]
[372901792,1752796255502,-1016.46,0.00021917,2]
[372901793,1752796255512,-2925.76,0.00021917,2]
[372901794,1752796255522,-460.0,0.00021917,2]
[372901795,1752796255532,-460.0,0.00021917,2]
[372901796,1752796255542,-954.11,0.00021917,2]
[372901797,1752796255551,-1003.8,0.00021917,2]
[372901798,1752796255561,-1378.25,0.00021917,2]
[372901799,1752796255572,-490.0,0.00021917,2]
[372901800,1752796255582,-460.0,0.00021917,2]
[372901801,1752796255592,-387.94366964,0.00021917,2]
[372901802,1752796255601,-593.75,0.00021917,2]
[372901803,1752796255611,-460.0,0.00021917,2]
[372901804,1752796255621,-460.0,0.00021917,2]
[372901805,1752796255630,-460.0,0.00021917,2]
[372901806,1752796255640,-460.0,0.00021917,2]
[372901807,1752796255652,-460.0,0.00021917,2]
[372901808,1752796255663,-460.0,0.00021917,2]
[372901809,1752796255674,-460.0,0.00021917,2]
[372901810,1752796255683,-460.0,0.00021917,2]
[372901811,1752796255693,-460.0,0.00021917,2]
[372901812,1752796255703,-1867.36,0.00021917,2]
[372901813,1752796255712,-461.83507751,0.00021917,2]
[372901814,1752796255722,-460.0,0.00021917,2]
[372901815,1752796255732,-460.0,0.00021917,2]
[372901816,1752796255742,-460.0,0.00021917,2]
[372901817,1752796255752,-3408.27,0.00021917,2]
[372901818,1752796255762,-1495.25,0.00021917,2]
[372901819,1752796255774,-460.0,0.00021917,2]
[372901820,1752796255786,-581.39,0.00021917,2]
[372901821,1752796255798,-460.0,0.00021917,2]
[372901822,1752796255808,-1279.3,0.00021917,2]
[372901823,1752796255818,-460.0,0.00021917,2]
[372901824,1752796255828,-466.01935457,0.00021917,2]
[372901825,1752796255838,-957.87,0.00021917,2]
[372901826,1752796255847,-460.0,0.00021917,2]
[372901827,1752796255857,-460.0,0.00021917,2]
[372901828,1752796255867,-460.0,0.00021917,2]
[372901829,1752796255877,-5200.27,0.00021917,2]
[372901830,1752796255887,-2435.29,0.00021917,2]
[372901831,1752796255897,-460.0,0.00021917,2]
[372901832,1752796255907,-460.0,0.00021917,2]
[372901833,1752796255916,-460.0,0.00021917,2]
[372901834,1752796255926,-558.53,0.00021917,2]
[372901835,1752796255936,-764.94,0.00021917,2]
[372901836,1752796255946,-932.72,0.00021917,2]
[372901837,1752796255956,-2158.86,0.00021917,2]
[372901838,1752796255966,-460.0,0.00021917,2]
[372901839,1752796255976,-460.0,0.00021917,2]
[372901840,1752796255986,-460.0,0.00021917,2]
[372901841,1752796255996,-472.84,0.00021917,2]
[372901842,1752796256006,-460.0,0.00021917,2]
[372901843,1752796256015,-303.18846525,0.00021917,2]
[372901844,1752796256025,-460.0,0.00021917,2]
[372901845,1752796256035,-460.0,0.00021917,2]
[372901846,1752796256044,-1271.66,0.00021917,2]
[372901847,1752796256055,-3323.59,0.00021917,2]
[372901848,1752796256066,-1174.66,0.00021917,2]
[372901849,1752796256075,-460.0,0.00021917,2]
[372901850,1752796256086,-1549.8,0.00021917,2]
[372901851,1752796256097,-4908.17,0.00021917,2]
[372901852,1752796256107,-2643.06,0.00021917,2]
[372901853,1752796256117,-460.0,0.00021917,2]
[372901854,1752796256127,-460.0,0.00021917,2]
[372901855,1752796256137,-460.0,0.00021917,2]
[372901856,1752796256147,-1083.75,0.00021917,2]
[372901857,1752796256157,-460.0,0.00021917,2]
[372901858,1752796256168,-460.0,0.00021917,2]
[372901859,1752796256178,-460.0,0.00021917,2]
[372901860,1752796256189,-1197.18,0.00021917,2]
[372901861,1752796256200,-1051.34,0.00021917,2]
[372901862,1752796256210,-460.0,0.00021917,2]
[372901863,1752796256220,-1440.74,0.00021917,2]
[372901864,1752796256230,-802.47,0.00021917,2]
[372901865,1752796256241,-300.0,0.00021917,2]
[372901866,1752796256251,-460.0,0.00021917,2]
[372901867,1752796256261,-460.0,0.00021917,2]
[372901868,1752796256271,-493.46286696,0.00021917,2]
[372901869,1752796256283,-460.0,0.00021917,2]
[372901870,1752796256295,-5577.38,0.00021917,2]
[372901871,1752796256307,-460.0,0.00021917,2]
[372901872,1752796256323,-460.0,0.00021917,2]
[372901873,1752796256333,-460.0,0.00021917,2]
[372901874,1752796256344,-460.0,0.00021917,2]
[372901875,1752796256354,-517.35,0.00021917,2]
[372901876,1752796256364,-460.0,0.00021917,2]
[372901877,1752796256375,-1979.45,0.00021917,2]
[372901878,1752796256385,-460.0,0.00021917,2]
[372901879,1752796256395,-1021.49,0.00021917,2]
[372901880,1752796256404,-928.87,0.00021917,2]
[372901881,1752796256414,-1113.43,0.00021917,2]
[372901882,1752796256424,-740.12,0.00021917,2]
[372901883,1752796256433,-460.0,0.00021917,2]
[372901884,1752796256443,-5637.03,0.00021917,2]
[372901885,1752796256453,-460.0,0.00021917,2]
[372901886,1752796256463,-741.2,0.00021917,2]
[372901887,1752796256472,-460.0,0.00021917,2]
[372901888,1752796256484,-460.0,0.00021917,2]
[372901889,1752796256496,-1512.04,0.00021917,2]
[372901890,1752796256506,-460.0,0.00021917,2]
[372901891,1752796256516,-460.0,0.00021917,2]
[372901892,1752796256527,-460.0,0.00021917,2]
[372901893,1752796256536,-1201.92,0.00021917,2]
[372901894,1752796256546,-460.0,0.00021917,2]
[372901895,1752796256558,-875.51,0.00021917,2]
[372901896,1752796256570,-547.93454042,0.00021917,2]
[372901897,1752796256580,-537.74,0.00021917,2]
[372901898,1752796256590,-460.0,0.00021917,2]
[372901899,1752796256600,-460.0,0.00021917,2]
[372901900,1752796256610,-460.0,0.00021917,2]
[372901901,1752796256619,-567.78,0.00021917,2]
[372901902,1752796256630,-460.0,0.00021917,2]
[372901903,1752796256639,-460.0,0.00021917,2]
[372901904,1752796256649,-460.0,0.00021917,2]
[372901905,1752796256659,-2816.91,0.00021917,2]
[372901906,1752796256996,-1987.34,0.00021917,2]
[372901907,1752796257023,-1106.71,0.00021917,2]
[372901908,1752796257033,-460.0,0.00021917,2]
[372901909,1752796257043,-460.0,0.00021917,2]
[372901910,1752796257053,-1088.61,0.00021917,2]
[372901911,1752796257063,-816.54,0.00021917,2]
[372901912,1752796257075,-460.0,0.00021917,2]
[372901913,1752796257085,-647.14,0.00021917,2]
[372901914,1752796257094,-726.29,0.00021917,2]
[372901915,1752796257104,-2107.16,0.00021917,2]
[372901916,1752796257114,-857.51,0.00021917,2]
[372901917,1752796257124,-460.0,0.00021917,2]
[372901918,1752796257134,-1002.9,0.00021917,2]
[372901919,1752796257143,-3827.19,0.00021917,2]
[372901920,1752796257153,-460.0,0.00021917,2]
[372901921,1752796257164,-1954.95,0.00021917,2]
[372901922,1752796257173,-150.95868646,0.00021917,2]
[372901923,1752796257183,-718.01,0.00021917,2]
[372901924,1752796257194,-460.0,0.00021917,2]
[372901925,1752796257204,-460.0,0.00021917,2]
[372901926,1752796257215,-1595.92,0.00021917,2]
[372901927,1752796257224,-6855.57,0.00021917,2]
[372901928,1752796257234,-460.0,0.00021917,2]
[372901929,1752796257244,-6228.5,0.00021917,2]
[372901930,1752796257254,-820.58,0.00021917,2]
[372901931,1752796257264,-460.0,0.00021917,2]
[372901932,1752796257273,-460.0,0.00021917,2]
[372901933,1752796257283,-460.0,0.00021917,2]
[372901934,1752796257294,-460.0,0.00021917,2]
[372901935,1752796257303,-460.0,0.00021917,2]
[372901936,1752796257313,-460.0,0.00021917,2]
[372901937,1752796257324,-1407.05,0.00021917,2]
[372901938,1752796257334,-460.0,0.00021917,2]
[372901939,1752796257344,-460.0,0.00021917,2]
[372901940,1752796257354,-2581.79,0.00021917,2]
[372901941,1752796257364,-460.0,0.00021917,2]
[372901942,1752796257375,-460.0,0.00021917,2]
[372901943,1752796257387,-460.0,0.00021917,2]
[372901944,1752796257398,-460.0,0.00021917,2]
[372901945,1752796257408,-460.0,0.00021917,2]
[372901946,1752796257417,-460.0,0.00021917,2]
[372901947,1752796257428,-460.0,0.00021917,2]
[372901948,1752796257438,-460.0,0.00021917,2]
[372901949,1752796257448,-552.89,0.00021917,2]
[372901950,1752796257458,-460.0,0.00021917,2]
[372901951,1752796257468,-582.26,0.00021917,2]
[372901952,1752796257479,-1563.1,0.00021917,2]
[372901953,1752796257496,-641.46,0.00021917,2]
[372901954,1752796257506,-1405.1,0.00021917,2]
[372901955,1752796257515,-894.41,0.00021917,2]
[372901956,1752796257525,-503.95,0.00021917,2]
[372901957,1752796257535,-1856.36,0.00021917,2]
[372901958,1752796257544,-460.0,0.00021917,2]
[372901959,1752796257560,-460.0,0.00021917,2]
[372901960,1752796257571,-460.0,0.00021917,2]
[372901961,1752796257581,-500.0,0.00021917,2]
[372901962,1752796257590,-500.0,0.00021917,2]
[372901963,1752796257600,-500.0,0.00021917,2]
[372901964,1752796257610,-460.0,0.00021917,2]
[372901965,1752796257619,-500.0,0.00021917,2]
[372901966,1752796257629,-460.0,0.00021917,2]
[372901967,1752796257638,-4272.16,0.00021917,2]
[372901968,1752796257647,-460.0,0.00021917,2]
[372901969,1752796257657,-1696.16,0.00021917,2]
[372901970,1752796257667,-227.81,0.00021918,2]
[372901971,1752796257676,-5000.0,0.00021918,2]
[372901972,1752796257686,-150.0,0.00021918,2]
[372901973,1752796257696,-224.77767304,0.00021918,2]
[372901974,1752796257705,-600.0,0.00021919,2]
[372901975,1752796257714,-152.87155512,0.0002192,2]
[372901976,1752796257724,-297.0,0.00021931,2]
[372901977,1752796257734,-150.0,0.00021931,4]
[372901978,1752796257744,-150.0,0.00021953,2]
[372901979,1752796257753,-150.0,0.00021971,2]
[372901980,1752796257763,-500.32476737,0.00021973,2]
[372901981,1752796257773,-2505.717,0.00021974,2]
[372901982,1752796257782,-165.008,0.00021974,2]
[372901983,1752796257792,-150.0,0.00021997,2]
[372901984,1752796257802,-297.0,0.00022005,2]
[372901985,1752796257812,-150.0,0.00022009,2]
[372901986,1752796257822,-150.0,0.00022023,2]
[372901987,1752796257832,-231.28369723,0.0002204,2]
[372901988,1752796257841,-150.0,0.00022041,2]
[372901989,1752796257851,-766.4716981,0.00022055,2]
[372901990,1752796257861,-150.0,0.00022057,2]
[372901991,1752796257871,-150.0,0.00022097,4]
[372901992,1752796257880,-255.56745204,0.00022114,2]
[372901993,1752796257890,-297.0,0.00022115,2]
[372901994,1752796257900,-150.0,0.00022119,2]
[372901995,1752796257910,-297.0,0.00022164,2]
[372901996,1752796257919,-160.73,0.00022171,2]
[372901997,1752796257929,-160.73,0.00022171,2]
[372901998,1752796257939,-160.73,0.00022171,2]
[372901999,1752796257950,-160.73,0.00022171,2]
[372902000,1752796257959,-160.73,0.00022171,2]
[372902001,1752796257969,-500.0,0.00022173,2]
[372902002,1752796257978,-331.49414078,0.0002219,2]
[372902003,1752796257988,-5631.38,0.0002219,2]
[372902004,1752796257998,-500.0,0.0002219,2]
[372902005,1752796258007,-500.0,0.0002219,2]
[372902006,1752796258016,-1623.01127088,0.00022191,2]
[372902007,1752796258026,-460.0,0.00022191,2]
[372902008,1752796258035,-460.0,0.00022191,2]
[372902009,1752796258045,-460.0,0.00022191,2]
[372902010,1752796258055,-460.0,0.00022191,2]
[372902011,1752796258064,-460.0,0.00022191,2]
[372902012,1752796258075,-460.0,0.00022191,2]
[372902013,1752796258084,-460.0,0.00022191,2]
[372902014,1752796258094,-460.0,0.00022191,2]
[372902015,1752796258104,-460.0,0.00022191,2]
[372902016,1752796258113,-1000.0,0.00022191,2]
[372902017,1752796258123,-460.0,0.00022191,2]
[372902018,1752796258133,-460.0,0.00022191,2]
[372902019,1752796258142,-460.0,0.00022191,2]
[372902020,1752796258152,-460.0,0.00022191,2]
[372902021,1752796258161,-460.0,0.00022191,2]
[372902022,1752796258173,-470.50518571,0.00022191,2]
[372902023,1752796258183,-460.0,0.00022191,2]
[372902024,1752796258194,-460.0,0.00022191,2]
[372902025,1752796258203,-460.0,0.00022191,2]
[372902026,1752796258213,-460.0,0.00022191,2]
[372902027,1752796258223,-460.0,0.00022191,2]
[372902028,1752796258233,-460.0,0.00022191,2]
[372902029,1752796258245,-460.0,0.00022191,2]
[372902030,1752796258255,-503.81,0.00022191,2]
[372902031,1752796258265,-460.0,0.00022191,2]
[372902032,1752796258275,-460.0,0.00022191,2]
[372902033,1752796258284,-460.0,0.00022191,2]
[372902034,1752796258294,-460.0,0.00022191,2]
[372902035,1752796258304,-460.0,0.00022191,2]
[372902036,1752796258314,-460.0,0.00022191,2]
[372902037,1752796258325,-460.0,0.00022191,2]
[372902038,1752796258335,-254.84956017,0.00022191,2]
[372902039,1752796258345,-460.0,0.00022191,2]
[372902040,1752796258355,-210.16523039,0.00022191,2]
[372902041,1752796259690,-394.10702289,0.00021917,2]
[372902042,1752796322457,249.24,0.00013699,2]
[372902044,1752796649914,852.86,0.00030137,120]